Cogmind - Beta 12 @@@ ROGUE MODE // 2023.05.04 @ 00:20:33 Player: Mr Goldstein Result: Destroyed by C-40 Crusher with Compactor Performance ------------- Evolutions (3) 1500 Regions Visited (5) 1000 Robots Destroyed (5) 25 Value Destroyed (114) 114 Prototype IDs (1) 20 Alien Tech Used (0) 0 Bonus (869) 869 TOTAL SCORE: 3528 Bonus ------- Pacifist 834 Follower Combat Kills 35 Cogmind --------- Core Integrity 0/700 Matter 299/300 Energy 100/100 System Corruption 0% Temperature Cool (0) Movement Core (50) Location -7/Waste Parts ------- > --- POWER (2) -------- (None) > --- PROPULSION (5) --- (None) > --- UTILITY (4) ------ (None) > --- WEAPON (2) ------- (None) > --- INVENTORY (5) ---- Micro Nuclear Core Rocket Launcher Peak State ------------ > --- POWER ------------ (None) > --- PROPULSION ------- Improved Flight Unit Impulse Thruster > --- UTILITY ---------- (None) > --- WEAPON ----------- (None) > --- INVENTORY -------- Micro Nuclear Core Rocket Launcher [Rating: 10] Favorites ----------- Power None Propulsion Improved Flight Unit Treads Light Treads Flight Unit Improved Flight Unit Utility None Weapon Rocket Launcher Launcher Rocket Launcher Build | -11 -10 -9 -8 -7 -7 ------- Run | Jun Mat Mat Mat Fac Was Slots Evolved 6 | . . 2 2 2 . Power 1 | . . . 1 . . Propulsion 3 | . . 2 . 1 . Utility 2 | . . . 1 1 . Weapon . | . . . . . . Parts Attached 9 | 2 . 1 . 5 1 Power . | . . . . . . Engine . | . . . . . . Core . | . . . . . . Reactor . | . . . . . . Propulsion 7 | 2 . 1 . 3 1 Treads 3 | 2 . 1 . . . Leg . | . . . . . . Wheel . | . . . . . . Hover . | . . . . . . Flight 4 | . . . . 3 1 Utility . | . . . . . . Device . | . . . . . . Storage . | . . . . . . Processor . | . . . . . . Hackware . | . . . . . . Protection . | . . . . . . Artifact . | . . . . . . Weapon 2 | . . . . 2 . Energy Gun . | . . . . . . Energy Cannon . | . . . . . . Ballistic Gun . | . . . . . . Ballistic Cannon . | . . . . . . Launcher 2 | . . . . 2 . Special Weapon . | . . . . . . Impact Weapon . | . . . . . . Slashing Weapon . | . . . . . . Piercing Weapon . | . . . . . . Special Melee Weapon . | . . . . . . Unidentified Prototypes 1 | . . . . 1 . Parts Lost 7 | . . 3 . 3 1 Power . | . . . . . . Propulsion 6 | . . 3 . 2 1 Utility . | . . . . . . Weapon 1 | . . . . 1 . Highest Loss Streak 4 | . . 3 . 3 4 To Critical Strikes . | . . . . . . Average Slot Usage (%) 16 | . 28 25 . 14 5 Treads 9 | . 28 25 . . . Flight 6 | . . . . 13 5 Naked Turns 105 | . . 28 39 15 23 Heaviest Build 4 | . . . . 4 . Greatest Support 10 | 3 3 3 3 10 5 Greatest Overweight (x) . | . . . . . . Average Overweight (x) . | . . . . . . Largest Inventory Capacity 5 | 5 5 5 5 5 5 Average Capacity 5 | 5 5 5 5 5 5 Most Carried 4 | . 2 4 4 4 2 Average Carried 2 | . 1 3 4 2 2 Final Capacity 5 | 5 5 5 5 5 5 Final Carried 4 | . 2 4 4 2 2 Class Distribution -------------------- 93% | Mutant 6% | Commander-Mutant Dominant Class ---------------- Mutant | -10/Materials Mutant | -9/Materials Mutant | -8/Materials Mutant | -7/Factory Mutant | -7/Waste Resources | -11 -10 -9 -8 -7 -7 ----------- Run | Jun Mat Mat Mat Fac Was Matter Collected 257 | 120 . . 3 134 . Remotely . | . . . . . . Salvage Created 120 | . . . . 120 . Parts 6 | . . . . 6 . Haulers Intercepted . | . . . . . . Recyclers Shooed . | . . . . . . Parts Field Recycled . | . . . . . . Retrieved Matter . | . . . . . . Parts Self-Destructed . | . . . . . . Prevented . | . . . . . . Kills | -11 -10 -9 -8 -7 -7 ------- Run | Jun Mat Mat Mat Fac Was Combat Hostiles Destroyed 4 | . . . . 4 . AOE 4 | . . . . 4 . Classes Destroyed 2 | . . . . 2 . Recycler 1 | . . . . 1 . Swarmer 4 | . . . . 4 . Best Kill Streak 5 | . . . . 5 . Combat Bots Only 4 | . . . . 4 . Max Kills in Single Turn 3 | . . . . 3 . Gunslinging . | . . . . . . Exploded 3 | . . . . 3 . Melee . | . . . . . . Uniques/NPCs Destroyed . | . . . . . . Combat | -11 -10 -9 -8 -7 -7 -------- Run | Jun Mat Mat Mat Fac Was Damage Taken 1775 | . 72 666 166 599 272 Core 1175 | . 25 274 166 438 272 Absorbed by Shields . | . . . . . . Core Remaining (%) 72 | 100 90 31 69 . . Volleys Fired 3 | . . . . 3 . Largest 2 | . . . . 2 . Hottest 66 | . . . . 66 . Shots Fired 4 | . . . . 4 . Gun . | . . . . . . Cannon . | . . . . . . Launcher 4 | . . . . 4 . Special . | . . . . . . Kinetic . | . . . . . . Thermal . | . . . . . . Explosive 4 | . . . . 4 . Electromagnetic . | . . . . . . Robot Hit Streak 2 | . . . . 2 . Robot Miss Streak 2 | . . . . 2 . Penetration Max . | . . . . . . Secondary Targets . | . . . . . . Shots Hit Robots 2 | . . . . 2 . Core Hits 9 | . . . . 9 . Critical Kills . | . . . . . . Critical Parts Destroyed . | . . . . . . Critical Strikes . | . . . . . . Melee Attacks . | . . . . . . Impact . | . . . . . . Slashing . | . . . . . . Piercing . | . . . . . . Sneak Attacks . | . . . . . . Combat Hostiles . | . . . . . . Follow-up Attacks . | . . . . . . Damage Inflicted 327 | . . 12 . 269 46 Guns . | . . . . . . Cannons . | . . . . . . Explosions 269 | . . . . 269 . Melee . | . . . . . . Ramming 58 | . . 12 . . 46 Kinetic . | . . . . . . Thermal . | . . . . . . Explosive 269 | . . . . 269 . Electromagnetic . | . . . . . . Impact . | . . . . . . Slashing . | . . . . . . Piercing . | . . . . . . Highest Corruption . | . . . . . . Average Corruption . | . . . . . . Corruption Purged . | . . . . . . Corruption Blocked . | . . . . . . Overload Shots . | . . . . . . Overflow Damage . | . . . . . . Projectiles . | . . . . . . Explosions . | . . . . . . Melee . | . . . . . . Knockbacks . | . . . . . . Impact . | . . . . . . Kinetic . | . . . . . . Secondary . | . . . . . . Self-Inflicted Damage 40 | . . 6 . 13 21 Shots 1 | . . . . 1 . Rammed 14 | . . 1 . . 13 Targets Rammed 14 | . . 1 . . 13 Kicked . | . . . . . . Crushed . | . . . . . . Highest Temperature 1 | . . . . 1 . Average Temperature 1 | . . . . 1 . Received Heat Transfer 405 | . 42 234 . 129 . Siege Activations . | . . . . . . Robots Corrupted . | . . . . . . Combat Hostiles . | . . . . . . Parts Fried . | . . . . . . Impact Corruptions . | . . . . . . Robots Melted . | . . . . . . Combat Hostiles . | . . . . . . Parts Melted . | . . . . . . Heat Transferred . | . . . . . . Parts Sabotaged . | . . . . . . Parts Stolen . | . . . . . . Parts Stripped . | . . . . . . Power Chain Reactions . | . . . . . . Missiles Intercepted . | . . . . . . Alert | -11 -10 -9 -8 -7 -7 ------- Run | Jun Mat Mat Mat Fac Was Peak Influence 324 | . 15 155 80 324 124 Initial 109 | . . 5 65 36 109 Average 89 | . 4 80 67 112 112 Maximum Alert Level 1 | . . . . 1 . Low Security (%) 96 | 100 100 100 100 92 100 Level 1 3 | . . . . 7 . Level 2 . | . . . . . . Level 3 . | . . . . . . Level 4 . | . . . . . . Level 5 . | . . . . . . High Security . | . . . . . . Max Security . | . . . . . . Squads Dispatched 6 | . . 2 . 4 . Investigation 3 | . . 1 . 2 . Extermination . | . . . . . . Reinforcement 1 | . . 1 . . . Assault . | . . . . . . Garrison 2 | . . . . 2 . Intercept . | . . . . . . Searches Triggered . | . . . . . . Construction Impeded . | . . . . . . Haulers Reinforced . | . . . . . . Active Scanning Responses . | . . . . . . Cargo Convoy Interrupts . | . . . . . . Stealth | -11 -10 -9 -8 -7 -7 --------- Run | Jun Mat Mat Mat Fac Was Distress Signals 6 | . . 3 . 3 . Communications Jammed . | . . . . . . Distress Signals . | . . . . . . Times Spotted 59 | . 2 24 2 26 5 Peak Tracking Total 17 | . 2 16 3 17 5 Tactical Retreats 7 | . . 4 1 2 . Traps | -11 -10 -9 -8 -7 -7 ------- Run | Jun Mat Mat Mat Fac Was Traps Triggered 1 | . . . . 1 . Indirectly . | . . . . . . Trap Hack Attempts . | . . . . . . Triggered . | . . . . . . Disarmed . | . . . . . . Reprogrammed . | . . . . . . Reused . | . . . . . . Traps Extracted . | . . . . . . Installed . | . . . . . . Triggered . | . . . . . . Machines | -11 -10 -9 -8 -7 -7 ---------- Run | Jun Mat Mat Mat Fac Was Machines Disabled . | . . . . . . Max in Single Turn . | . . . . . . Machines Repaired . | . . . . . . Machines Sabotaged . | . . . . . . Overloaded Fab Kills . | . . . . . . Hacking | -11 -10 -9 -8 -7 -7 --------- Run | Jun Mat Mat Mat Fac Was Machines Accessed 4 | . . 1 . 3 . Terminals 1 | . . . . 1 . Fabricators 1 | . . . . 1 . Repair Stations . | . . . . . . Recycling Units 2 | . . 1 . 1 . Scanalyzers . | . . . . . . Garrison Access . | . . . . . . Total Hacks 9 | . . 1 . 8 . Successful 5 | . . 1 . 4 . Failed 4 | . . . . 4 . Catastrophic . | . . . . . . Database Lockouts . | . . . . . . Manual 6 | . . 1 . 5 . Terminals 1 | . . . . 1 . Fabricators 4 | . . . . 4 . Repair Stations . | . . . . . . Recycling Units 4 | . . 1 . 3 . Scanalyzers . | . . . . . . Garrison Access . | . . . . . . Terminal Hacks . | . . . . . . Fabricator Hacks 1 | . . . . 1 . Build 1 | . . . . 1 . Repair Station Hacks . | . . . . . . Recycling Unit Hacks . | . . . . . . Scanalyzer . | . . . . . . Garrison Access Hacks . | . . . . . . Unauthorized Hacks 4 | . . 1 . 3 . Terminals 1 | . . . . 1 . Botnet 1 | . . . . 1 . Fabricators 1 | . . . . 1 . Liberate 1 | . . . . 1 . Repair Stations . | . . . . . . Recycling Units 2 | . . 1 . 1 . Tunnel 2 | . . 1 . 1 . Scanalyzers . | . . . . . . Garrison Access . | . . . . . . Data Cores Recovered . | . . . . . . Used . | . . . . . . Hacking Detections 3 | . . . . 3 . Full Trace Events 1 | . . . . 1 . Feedback Events . | . . . . . . Feedback Blocked . | . . . . . . Robot Schematics Acquired . | . . . . . . Robots Built 4 | . . . . 4 . Authchips . | . . . . . . Time 67 | . . . . 67 . Total Robot Build Rating 16 | . . . . 16 . Part Schematics Acquired . | . . . . . . Parts Built . | . . . . . . Authchips . | . . . . . . Time . | . . . . . . Total Part Build Rating . | . . . . . . Parts Repaired . | . . . . . . Time . | . . . . . . Parts Recycled . | . . . . . . Recycled Matter . | . . . . . . Retrieved Matter . | . . . . . . Retrieved Components . | . . . . . . Parts Scanalyzed . | . . . . . . Part Schematics Acquired . | . . . . . . Parts Damaged . | . . . . . . Bothacking | -11 -10 -9 -8 -7 -7 ------------ Run | Jun Mat Mat Mat Fac Was Used RIF Installer . | . . . . . . Robots Hacked . | . . . . . . Non-combat . | . . . . . . Combat . | . . . . . . Robot Hacks Applied . | . . . . . . Relay Couplers Released . | . . . . . . Fabnet Peak Effective % . | . . . . . . Robots Rewired . | . . . . . . Allies Hacked . | . . . . . . Hacks Repelled . | . . . . . . Allies | -11 -10 -9 -8 -7 -7 -------- Run | Jun Mat Mat Mat Fac Was Total Allies 4 | . . . . 4 . Largest Group 4 | . . . . 4 . Highest-Rated Group 48 | . . . . 48 . Highest-Rated Ally 12 | . . . . 12 . Total Orders 1 | . . . . 1 . GUARD 1 | . . . . 1 . Ally Attacks 23 | . . . . 23 . Total Damage 263 | . . . . 263 . Kills 1 | . . . . 1 . Allies Corrupted . | . . . . . . Allies Melted . | . . . . . . Intel | -11 -10 -9 -8 -7 -7 ------- Run | Jun Mat Mat Mat Fac Was Robot Analysis Total . | . . . . . . Derelict Logs Recovered . | . . . . . . Drone Launches . | . . . . . . Drone Recoveries . | . . . . . . Exploration | -11 -10 -9 -8 -7 -7 ------------- Run | Jun Mat Mat Mat Fac Was Turns Passed 555 | 18 31 169 39 259 39 Spaces Moved 1149 | 30 58 328 77 600 56 Core 543 | 30 58 328 77 29 21 Treads . | . . . . . . Legs . | . . . . . . Wheels . | . . . . . . Hover . | . . . . . . Flight 606 | . . . . 571 35 Fastest Speed 34 | 50 50 50 50 34 40 Average Speed 43 | 50 50 50 50 37 43 Slowest Speed 50 | 50 50 50 50 50 50 Overloaded Moves . | . . . . . . Propulsion Burnouts . | . . . . . . Robots Hopped 10 | . . . . 10 . Cave-ins Triggered . | . . . . . . Exploration Rate (%) 24 | 4 13 42 16 15 58 Regions Visited 5 Branch Regions . Pre-discovered Areas 2 | . . 1 . 1 . Known Exits Taken . | . . . . . . Unknown Exits Taken 4 | 1 1 1 1 . . Scrap Searched . | . . . . . . Spaces Dug . | . . . . . . Terrain Destroyed 19 | . . . . 19 . Melee . | . . . . . . Projectile . | . . . . . . AOE 19 | . . . . 19 . Terrain Rammed . | . . . . . . Walls Destroyed . | . . . . . . Machines Disabled . | . . . . . . Actions | -11 -10 -9 -8 -7 -7 --------- Run | Jun Mat Mat Mat Fac Was Total 1185 | 31 59 331 76 618 70 Wait 18 | . . . . 18 . Move 1125 | 29 57 327 76 580 56 Hop 10 | . . . . 10 . Pick Up 5 | . 2 2 . 1 . Fast Attach 5 | 2 . 1 . 1 1 Attach 4 | . . . . 4 . Detach 1 | . . . . 1 . Swap . | . . . . . . Drop . | . . . . . . Fire 3 | . . . . 3 . Melee . | . . . . . . Ram 14 | . . 1 . . 13 Kick . | . . . . . . Crush . | . . . . . . Escape Stasis . | . . . . . . Rewire . | . . . . . . Trap . | . . . . . . Miscellaneous . | . . . . . . Route ------- -11/Junkyard -10/Materials -9/Materials (discovered 2 exits: [*Mat] / [*Min]) -8/Materials -7/Factory -7/Waste History --------- Turn | Location | Event 2 | -11/Junkyard | Discovered new exit (range 16) 19 | -11/Junkyard | Entered Materials 44 | -10/Materials | Discovered new exit (range 13) 50 | -10/Materials | Entered another Materials area 50 | -9/Materials | Evolved 2 slots: Propulsion x2 132 | -9/Materials | Discovered new exit (range 12) 197 | -9/Materials | Core integrity fell below 50% 214 | -9/Materials | Discovered new exit (range 9) 219 | -9/Materials | Entered another Materials area 219 | -8/Materials | Evolved 2 slots: Power x1, Utility x1 222 | -8/Materials | Lost 3 parts (3n) 250 | -8/Materials | Discovered new exit (range 14) 258 | -8/Materials | Entered Factory 258 | -7/Factory | Evolved 2 slots: Propulsion x1, Utility x1 314 | -7/Factory | Build established: Mutant 352 | -7/Factory | Fabricated S-27 Virus (x4) 388 | -7/Factory | Garrison activated, responded to threat 512 | -7/Factory | Core integrity fell below 50% 517 | -7/Factory | Sucked down chute 517 | -7/Factory | Entered Waste 521 | -7/Waste | Spotted C-40 Crusher 521 | -7/Waste | Spotted C-40 Crusher 521 | -7/Waste | Spotted C-40 Crusher 533 | -7/Waste | Crushed by Compactor (1 part destroyed, 1 dropped) 542 | -7/Waste | Spotted C-40 Crusher 548 | -7/Waste | Core integrity fell below 20% 556 | -7/Waste | Destroyed by C-40 Crusher with Compactor Last Messages --------------- 00509_ Rocket Launcher destroyed. 00509_ Acquired VTOL Module. 00510_ U-05 Engineer lays Concrete. 00511_ U-05 Engineer builds a Wall. 00511_ Slug penetrates Wall. 00511_ U-05 Engineer lays Concrete. 00512_ Acquired 67 matter. 00512_ VTOL Module destroyed. 00512_ U-05 Engineer lays Concrete. 00513_ The unstable cave ceiling collapses. 00517_ U-05 Engineer lays Concrete. 00517_ Knocked back. 00517_ Triggered Chute Trap. 00517_ A hatch slides open and sucks a vortex of air into the floor. LOCATION=UNKNOWN GOAL=ESCAPE 00523_ Acquired Broken Impulse Thruster. 00533_ Imp. Flight Unit crushed. 00533_ Broken Impulse Thruster crushed. 00544_ Slammed into C-40 Crusher. Map ----- +----------------------------------------------------+ | ?????????????????????????????????????????????????? | | ?????????????????????????????????????????????????? | | ?????????????????????????????????????????????????? | | ?????????????????????????????????????????????????? | | ?????????????????????????????????????????????????? | | ?????????????????????????????????????????????????? | | ?????????????????????????????????????????????????? | | ?????????????????????????????????????????????????? | | ?????????????????????????????????????????????????? | | ?????????????????????????????????????????????????? | | ?????????????????????????????????????????????????? | | ?????????????????????????????????????????????????? | | ?????????????????????????????????????????????????? | | ?????????????????????????????????????????????????? | | ?????????????????????????????????????????????????? | | ?????????????????????????????????????????????????? | | ?######??????######???????#####??????????????????? | | ?# #??????# #??????? #??????????????????? | | ?# #??????# #??????? #??????????????????? | | ?# #??????# #??????? #??????????????????? | | ?# #??????# #??????? #??????????????????? | | ## ######## ######## #??????????????????? | | CC #??????????????????? | | CC #??????????????????? | | ! CC CC #??????????????????? | | CC @CC #??????????????????? | | ## * ######## ########CC #??????????????????? | | ?# #??????# #???????CCCC#??????????????????? | | ?# #??????# #???????? CC#??????????????????? | | ?# #??????# #???????? #??????????????????? | | ## ######## #????????? #??????????????????? | | #????????? #??????????????????? | | #?????????? #??????????????????? | | = #?????????? #??????????????????? | | #???????????#??????????????????? | | ## ######## ] #??????????????????????????????? | | ?# #??????# #??????????????????????????????? | | ?# #??????# #??????????????????????????????? | | ?# #??????# #??????????????????????????????? | | ?# #??????# #??????????????????????????????? | | #??????# #??????????????????????????????? | | #??????# #??????????????????????????????? | | #??????# #??????????????????????????????? | | ! #??????# #??????????????????????????????? | | ## #??????# #??????????????????????????????? | | ?# ! #??????# #??????????????????????????????? | | ?# #??????# #??????????????????????????????? | | ?# #??????? #??????????????????????????????? | | ?# #??????? #??????????????????????????????? | | ?######???????###????????????????????????????????? | +----------------------------------------------------+ Best States ------------- Heat Dissipation 34 Energy Generation 5 Energy Capacity 100 Matter Stores 272 Matter Capacity 300 Sight Range 16 Terrain Scan Density 10 Evasion (%) 62 Item Schematics ----------------- None Robot Schematics ------------------ None Fabricated ------------ S-27 Virus | x4 | -7/Factory | Preloaded Alien Tech Used ----------------- None Achievements -------------- None Challenges ------------ None Game ------ Seed AutogunRagnarokEdition Manual? 0 Play Time 00:07:09 Cumulative 170.8 hours Start 2023.05.04 @ 00:13:47 End 2023.05.04 @ 00:20:33 Sessions 1 Manual Loads 0 Difficulty Rogue Special Mode None Game No. 503 Rogue 503 Adventurer 0 Explorer 0 Win Type - Total 8 Types 7/0/0/1/0/0/0/0/0 Lore% 70 Gallery% 74 Achievement% 65 Wizard Run 0 Options --------- ASCII 0 Keyboard 0 Movement Numpad Keybinds 0 Fullscreen 1 Font 16/SmallcapsGlow Map View 75x55 Tactical HUD 1 Map Filters NONE Filters NONE Steam 1 RUN: 46190a4f-ba90-4831-9c06-6843edcd860d